[Event "11th Chennai Open-GM 2019"]
[Site "Chennai"]
[Date "2019.01.21"]
[Round "6"]
[White "Siddarth, M."]
[Black "Laxman, R.R."]
[Result "1/2-1/2"]
[ECO "C95"]
[WhiteElo "2040"]
[BlackElo "2421"]
[Annotator "RC"]
[PlyCount "74"]
[EventDate "2019.01.18"]
[EventType "swiss"]
[EventCountry "IND"]
[SourceTitle "playchess.com"]
[Source "ChessBase"]
[SourceQuality "1"]
[TimeControl "5400+30"]

1. e4 {[%emt 0:00:00]} e5 {[%emt 0:00:00]} 2. Nf3 {[%emt 0:00:00]} Nc6 {[%emt 0:00:00]} 3. Bb5 {[%emt 0:00:00]} a6 {[%emt 0:00:00]} 4. Ba4 {[%emt 0:00:00]} Nf6 {[%emt 0:00:04]} 5. O-O {[%emt 0:00:00]} Be7 {[%emt 0:00:21]} 6. Re1 {[%emt 0:00:06]} b5 {[%emt 0:00:06]} 7. Bb3 {[%emt 0:00:03]} O-O {[%emt 0:00:12]} 8. c3 {[%emt 0:00:14]} d6 {[%emt 0:00:05]} 9. h3 {[%emt 0:00:10]} Nb8 {[%emt 0:00:16]} 10. d4 {[%emt 0:00:17]} Nbd7 {[%emt 0:00:07]} 11. Nbd2 {[%emt 0:00:14]} Bb7 {[%emt 0:00:37]} 12. Bc2 {[%emt 0:00:22]} Re8 {[%emt 0:00:11]} 13. Nf1 {[%emt 0:00:09]} Bf8 {[%emt 0:00:11]} 14. Ng3 {[%emt 0:00:22]} c6 {[%emt 0:01:06]} 15. Nf5 {[%emt 0:02:09]} Qc7 {[%emt 0:00:57]} 16. Bg5 {[%emt 0:02:12]} h6 {[%emt 0:00:15]} 17. dxe5 {[%emt 0:05:17]} dxe5 {[%emt 0:00:15]} 18. Bh4 {[%emt 0:03:08]} g6 {[%emt 0:00:29]} 19. Ne3 {[%emt 0:01:29]} Bg7 {[%emt 0:01:27]} 20. Qe2 {[%emt 0:01:18]} c5 {[%emt 0:01:32]} 21. Ng4 {[%emt 0:04:16]} Nxg4 {[%emt 0:01:46]} 22. hxg4 {[%emt 0:00:41]} c4 {[%emt 0:00:07]} 23. Rad1 {[%emt 0:01:16]} Nc5 {[%emt 0:00:06]} 24. Rd2 {[%emt 0:02:06]} g5 {[%emt 0:05:36]} 25. Bg3 {[%emt 0:01:19]} Rad8 {[%emt 0:00:24]} 26. Nd4 {[%emt 0:01:46]} Qd7 {[%emt 0:00:14]} 27. Nb3 {[%emt 0:00:16]} Qe7 {[%emt 0:00:43]} 28. Nxc5 {[%emt 0:00:33]} Qxc5 {[%emt 0:00:06]} 29. Red1 {[%emt 0:00:07]} Rxd2 {[%emt 0:05:50]} 30. Qxd2 {[%emt 0:00:48]} Bc8 {[%emt 0:00:14]} 31. Qe2 {[%emt 0:04:55]} Be6 {[%emt 0:02:39]} 32. a3 {[%emt 0:07:05]} Bf6 {[%emt 0:00:36]} 33. Kf1 {[%emt 0:02:53]} Rd8 {[%emt 0:02:00]} 34. f3 {[%emt 0:01:01]} Rxd1+ 35. Qxd1 {[%emt 0:00:31]} Be7 {[%emt 0:01:22]} 36. Bf2 {[%emt 0:03:16]} Qc7 {[%emt 0:00:53]} 37. Qd2 {[%emt 0:01:06]} Kg7 {[%emt 0:03:26]} 1/2-1/2

[Event "11th Chennai Open-GM 2019"]
[Site "Chennai"]
[Date "2019.01.21"]
[Round "6"]
[White "Barath Kalyan M"]
[Black "Czebe, Attila"]
[Result "0-1"]
[ECO "A47"]
[WhiteElo "2004"]
[BlackElo "2418"]
[Annotator "ChessBase"]
[PlyCount "62"]
[EventDate "2019.01.18"]
[EventType "swiss"]
[EventCountry "IND"]
[SourceTitle "playchess.com"]
[Source "ChessBase"]
[SourceQuality "1"]
[TimeControl "5400+30"]

1. d4 {[%emt 0:07:34]} Nf6 {[%emt 0:00:02]} 2. Nf3 {[%emt 0:00:13]} b6 {[%emt 0:01:31]} 3. Bf4 {[%emt 0:01:46]} Bb7 {[%emt 0:00:09]} 4. e3 {[%emt 0:00:11]} Nh5 {[%emt 0:07:46]} 5. Bg3 {[%emt 0:02:27]} Nxg3 {[%emt 0:02:31]} 6. hxg3 {[%emt 0:00:10]} d6 {[%emt 0:00:32]} 7. Bd3 {[%emt 0:00:36]} g6 {[%emt 0:02:50]} 8. Nbd2 {[%emt 0:06:17]} Bg7 {[%emt 0:00:44]} 9. c3 {[%emt 0:00:57]} Nd7 {[%emt 0:01:32]} 10. Qb3 {[%emt 0:03:06]} e5 {[%emt 0:00:57]} 11. Be4 {[%emt 0:15:36]} c6 {[%emt 0:03:15]} 12. Nc4 {[%emt 0:06:04]} Qc7 {[%emt 0:10:44]} 13. dxe5 {[%emt 0:02:01]} dxe5 {[%emt 0:00:46]} 14. O-O-O {[%emt 0:09:58]} O-O {[%emt 0:03:05]} 15. Nd6 {[%emt 0:02:51]} Nc5 {[%emt 0:00:47]} 16. Qc2 {[%emt 0:01:13]} Ba6 {[%emt 0:09:34]} 17. b4 {[%emt 0:13:30]} Nxe4 {[%emt 0:02:02]} 18. Qxe4 {[%emt 0:03:38]} Rfd8 {[%emt 0:15:36]} 19. Nc4 {[%emt 0:01:08]} Rxd1+ {[%emt 0:03:40]} 20. Rxd1 {[%emt 0:00:07]} f5 {[%emt 0:03:01]} 21. Qh4 {[%emt 0:00:39]} e4 {[%emt 0:00:11]} 22. Ng5 {[%emt 0:00:10]} h6 {[%emt 0:08:59]} 23. Ne6 {[%emt 0:06:21]} Qf7 {[%emt 0:01:07]} 24. Rd8+ {[%emt 0:01:33]} Rxd8 {[%emt 0:00:05]} 25. Qxd8+ {[%emt 0:00:07]} Kh7 {[%emt 0:00:06]} 26. Nxg7 {[%emt 0:02:19]} Qxc4 {[%emt 0:00:12]} 27. Qf6 {[%emt 0:01:55]} Qf1+ {[%emt 0:00:11]} 28. Kb2 {[%emt 0:00:41]} Qe2+ {[%emt 0:00:06]} 29. Kb1 {[%emt 0:01:28]} Bd3+ {[%emt 0:00:14]} 30. Ka1 {[%emt 0:00:08]} Qc2 {[%emt 0:00:58]} 31. Ne8 {[%emt 0:00:07]} Qc1# 0-1

[Event "11th Chennai Open-GM 2019"]
[Site "Chennai"]
[Date "2019.01.23"]
[Round "8"]
[White "Gajek, Radoslaw"]
[Black "Saravanan, V.."]
[Result "1/2-1/2"]
[ECO "E63"]
[WhiteElo "2481"]
[BlackElo "2318"]
[Annotator "ChessBase"]
[PlyCount "173"]
[EventDate "2019.01.18"]
[EventType "swiss"]
[EventCountry "IND"]
[SourceTitle "playchess.com"]
[Source "ChessBase"]
[SourceQuality "1"]
[TimeControl "5400+30"]

1. Nf3 {[%emt 0:00:00]} Nf6 {[%emt 0:00:00]} 2. c4 {[%emt 0:00:00]} g6 {[%emt 0:00:00]} 3. Nc3 {[%emt 0:00:00]} Bg7 {[%emt 0:00:00]} 4. g3 {[%emt 0:00:09]} O-O {[%emt 0:00:00]} 5. Bg2 {[%emt 0:00:04]} d6 {[%emt 0:06:04]} 6. O-O {[%emt 0:00:08]} Nc6 {[%emt 0:00:03]} 7. d4 {[%emt 0:01:23]} a6 {[%emt 0:00:06]} 8. d5 {[%emt 0:03:20]} Na5 {[%emt 0:00:07]} 9. Nd2 {[%emt 0:01:32]} c5 {[%emt 0:00:07]} 10. a3 {[%emt 0:05:22]} Bd7 {[%emt 0:00:40]} 11. b4 {[%emt 0:07:47]} cxb4 {[%emt 0:00:20]} 12. axb4 {[%emt 0:00:09]} Nxc4 {[%emt 0:00:05]} 13. Nxc4 {[%emt 0:01:06]} Qc7 {[%emt 0:10:32]} 14. Qb3 {[%emt 0:03:01]} Rac8 {[%emt 0:01:11]} 15. Nxd6 {[%emt 0:01:54]} Qxc3 {[%emt 0:08:35]} 16. Qxc3 {[%emt 0:01:10]} Rxc3 {[%emt 0:00:06]} 17. Nxb7 {[%emt 0:00:36]} Bb5 {[%emt 0:12:46]} 18. Nc5 {[%emt 0:13:10]} Rc2 {[%emt 0:02:56]} 19. Ra5 {[%emt 0:11:40]} Bxe2 {[%emt 0:09:16]} 20. Re1 {[%emt 0:00:10]} Ng4 {[%emt 0:00:27]} 21. Be4 {[%emt 0:05:20]} Bc3 {[%emt 0:00:12]} 22. Bxc2 {[%emt 0:01:06]} Bxe1 {[%emt 0:00:13]} 23. Nd3 {[%emt 0:01:28]} Bxd3 {[%emt 0:04:08]} 24. Bxd3 {[%emt 0:00:12]} Nxf2 {[%emt 0:00:37]} 25. Bxa6 {[%emt 0:00:58]} Bxb4 {[%emt 0:00:46]} 26. Ra4 {[%emt 0:12:34]} Bc5 {[%emt 0:00:57]} 27. Ba3 {[%emt 0:02:05]} Nd3+ {[%emt 0:07:06]} 28. Kf1 {[%emt 0:01:06]} Bxa3 {[%emt 0:00:11]} 29. Bxd3 {[%emt 0:00:43]} Bd6 {[%emt 0:00:07]} 30. Be4 {[%emt 0:00:52]} Rb8 {[%emt 0:01:53]} 31. Ra2 {[%emt 0:00:13]} h5 {[%emt 0:02:38]} 32. Bf3 {[%emt 0:00:55]} Kg7 {[%emt 0:03:09]} 33. Kg2 {[%emt 0:00:36]} Rb3 {[%emt 0:00:50]} 34. Re2 {[%emt 0:01:24]} Kh6 {[%emt 0:01:32]} 35. Be4 {[%emt 0:08:23]} Kg5 {[%emt 0:03:28]} 36. Bf3 {[%emt 0:00:50]} Ra3 {[%emt 0:00:10]} 37. Re4 {[%emt 0:00:35]} Rc3 {[%emt 0:01:10]} 38. Re2 {[%emt 0:00:25]} h4 {[%emt 0:02:15]} 39. gxh4+ {[%emt 0:03:52]} Kxh4 {[%emt 0:00:06]} 40. Re4+ {[%emt 0:02:24]} Kg5 {[%emt 0:00:09]} 41. Be2 {[%emt 0:02:27]} Rc2 {[%emt 0:04:25]} 42. h4+ {[%emt 0:03:48]} Kh6 {[%emt 0:02:00]} 43. Kf1 {[%emt 0:01:49]} Rd2 {[%emt 0:01:39]} 44. Bf3 {[%emt 0:00:12]} Bg3 {[%emt 0:07:57]} 45. Kg1 {[%emt 0:00:58]} f5 {[%emt 0:02:35]} 46. Rxe7 {[%emt 0:00:34]} Bxh4 {[%emt 0:00:06]} 47. Re6 {[%emt 0:00:20]} Bf2+ {[%emt 0:01:16]} 48. Kh1 {[%emt 0:00:47]} Bg3 {[%emt 0:00:06]} 49. Re2 {[%emt 0:00:09]} Rd3 {[%emt 0:00:57]} 50. Kg2 {[%emt 0:00:03]} Bf4 {[%emt 0:00:24]} 51. Re6 {[%emt 0:00:46]} Kg7 {[%emt 0:00:34]} 52. Re7+ {[%emt 0:01:00]} Kf6 {[%emt 0:01:42]} 53. Re6+ {[%emt 0:00:05]} Kg5 {[%emt 0:00:05]} 54. Kf2 {[%emt 0:00:33]} Rd4 {[%emt 0:01:43]} 55. Kf1 {[%emt 0:01:54]} Kh6 {[%emt 0:00:43]} 56. Kg2 {[%emt 0:00:38]} Kg7 {[%emt 0:00:16]} 57. Re7+ {[%emt 0:00:05]} Kf6 {[%emt 0:00:07]} 58. Re6+ {[%emt 0:00:04]} Kf7 {[%emt 0:00:05]} 59. Kf1 {[%emt 0:00:47]} Bg5 {[%emt 0:03:41]} 60. Rb6 {[%emt 0:01:23]} Be7 {[%emt 0:00:14]} 61. Ke2 {[%emt 0:01:03]} g5 {[%emt 0:01:00]} 62. Bh5+ {[%emt 0:00:05]} Kf8 {[%emt 0:00:08]} 63. Rb8+ {[%emt 0:00:25]} Kg7 {[%emt 0:00:08]} 64. Rb7 {[%emt 0:00:15]} Kh6 {[%emt 0:01:40]} 65. Bf7 {[%emt 0:00:19]} Bc5 {[%emt 0:00:53]} 66. Be6 {[%emt 0:00:07]} Kg6 {[%emt 0:00:20]} 67. Rf7 {[%emt 0:00:25]} Rf4 {[%emt 0:00:07]} 68. Rc7 {[%emt 0:00:24]} Bb4 {[%emt 0:00:21]} 69. Rc8 {[%emt 0:00:36]} Kf6 {[%emt 0:00:13]} 70. Ke3 {[%emt 0:00:36]} Bd6 {[%emt 0:01:08]} 71. Rd8 {[%emt 0:00:57]} Bc5+ {[%emt 0:00:12]} 72. Ke2 {[%emt 0:00:12]} g4 {[%emt 0:00:24]} 73. Rg8 {[%emt 0:00:12]} Ke5 {[%emt 0:00:40]} 74. Rg5 {[%emt 0:00:06]} Kf6 {[%emt 0:00:32]} 75. Rg8 {[%emt 0:00:06]} Bd6 {[%emt 0:00:19]} 76. Rd8 {[%emt 0:00:59]} Ke5 {[%emt 0:00:22]} 77. Rg8 {[%emt 0:00:05]} Bc5 {[%emt 0:01:52]} 78. Rg5 {[%emt 0:01:24]} Kf6 {[%emt 0:00:29]} 79. Rg8 {[%emt 0:00:17]} Ra4 {[%emt 0:00:59]} 80. Kf1 {[%emt 0:01:43]} Bd6 {[%emt 0:00:20]} 81. Rd8 {[%emt 0:00:16]} Ra6 {[%emt 0:00:43]} 82. Rd7 {[%emt 0:00:20]} Be7 {[%emt 0:01:59]} 83. Bxf5 {[%emt 0:00:22]} Kxf5 {[%emt 0:00:10]} 84. Rxe7 {[%emt 0:00:04]} Rd6 {[%emt 0:00:05]} 85. Kg2 {[%emt 0:00:28]} Rxd5 {[%emt 0:00:11]} 86. Rf7+ {[%emt 0:00:05]} Kg6 {[%emt 0:00:13]} 87. Rf8 {[%emt 0:00:02]} 1/2-1/2

[Event "11th Chennai Open-GM 2019"]
[Site "Chennai"]
[Date "2019.01.23"]
[Round "8"]
[White "Sahoo, Utkal Ranjan"]
[Black "Senthil Maran K"]
[Result "1-0"]
[ECO "D31"]
[WhiteElo "2388"]
[BlackElo "2183"]
[Annotator "NA"]
[PlyCount "127"]
[EventDate "2019.01.18"]
[EventType "swiss"]
[EventCountry "IND"]
[SourceTitle "playchess.com"]
[Source "ChessBase"]
[SourceQuality "1"]
[TimeControl "5400+30"]

1. d4 d5 2. c4 e6 3. Nc3 c6 4. cxd5 exd5 5. Nf3 Bd6 {LiveBook: 123 Games} 6. Bg5 Ne7 7. e3 Bf5 8. a3 {[%emt 0:14:18] D31: Queen's Gambit Declined: Semi-Slav without ...Nf6 (+ Marshall Gambit and Noteboom) and Exchange Variation lines without ...Nf6} (8. Bd3 Bxd3 9. Qxd3 Nd7 10. O-O f6 11. Bh4 Ng6 12. Bg3 Bxg3 13. hxg3 {½-½ (13) Hulak,K (2557)-Pavasovic,D (2586) Celje 2003}) 8... O-O {[%emt 0:17:43]} 9. Nh4 $146 {[%emt 0:00:30]} ({Predecessor:} 9. Bh4 Nd7 10. Bd3 Bxd3 11. Qxd3 a5 12. O-O Re8 13. b3 Nb6 {0-1 (31) Yee,L (2185)-O'Donnell,T (2357) Sackville 2001}) 9... f6 {[%emt 0:00:30]} 10. Bf4 {[%emt 0:00:30]} Bxf4 {[%emt 0:00:30]} 11. exf4 {[%emt 0:00:30]} Qd6 {[%emt 0:00:30]} 12. Qd2 {[%emt 0:00:30]} Nd7 {[%emt 0:00:30]} 13. Be2 {[%emt 0:00:30]} Be4 {[%emt 0:00:30]} 14. O-O {[%emt 0:00:30]} Rae8 {[%emt 0:00:30]} 15. Rfe1 {[%emt 0:00:30]} Ng6 {[%emt 0:00:30]} 16. Bh5 {[%emt 0:00:30]} Nxh4 {[%emt 0:00:30]} 17. Bxe8 {[%emt 0:00:30]} Rxe8 {[%emt 0:00:30]} 18. f3 {[%emt 0:00:30]} f5 {[%emt 0:00:30]} 19. fxe4 {[%emt 0:00:30]} fxe4 {[%emt 0:00:30]} 20. Rf1 $17 {[%emt 0:00:30]} ({Better is} 20. Ne2 $15) 20... Qh6 {[%emt 0:00:30]} (20... Nf5 $17) 21. Nd1 {[%emt 0:00:30]} Re6 {[%emt 0:00:30]} 22. Ne3 {[%emt 0:00:30]} Rg6 {[%emt 0:00:30]} 23. Kh1 {[%emt 0:00:30]} Nf6 {[%emt 0:00:30]} 24. Qa5 {[%emt 1:11:36]} Kh8 {[%emt 1:11:58]} 25. Qd8+ {[%emt 0:00:30]} Ng8 {[%emt 0:00:30]} 26. Qc8 {[%emt 0:00:30]} Rd6 {[%emt 0:00:30]} 27. Qxb7 {[%emt 0:00:30]} Qh5 {[%emt 0:00:30]} 28. Qc8 {[%emt 0:00:30]} Qe2 {[%emt 0:00:30]} 29. Rae1 {[%emt 0:00:30]} Qd2 {[%emt 0:00:30]} 30. Qg4 {[%emt 0:00:30]} Rh6 {[%emt 0:00:30]} 31. Re2 {[%emt 0:00:30]} Qxd4 {[%emt 0:00:30]} 32. g3 {[%emt 0:00:30]} Nf3 {[%emt 0:00:30]} 33. Nf5 {[%emt 0:00:30]} Qf6 {[%emt 0:00:30]} 34. Nxh6 {[%emt 0:00:30]} Qxh6 {[%emt 0:00:30]} 35. Rxf3 {[%emt 0:00:30]} exf3 {[%emt 0:00:30]} 36. Qxf3 {[%emt 0:00:30]} Qg6 {[%emt 0:00:30]} 37. f5 {[%emt 0:00:30]} Qf6 {[%emt 0:00:30]} 38. Kg2 {[%emt 0:00:30]} h6 {[%emt 0:00:30]} 39. g4 {[%emt 0:00:30]} Qd4 {[%emt 0:00:30]} 40. h3 {[%emt 0:00:30]} Nf6 {[%emt 0:00:30]} 41. Qc3 {[%emt 0:00:30]} Qf4 {[%emt 0:00:30]} 42. Qe3 {[%emt 0:00:30]} Qc4 {[%emt 0:00:30]} 43. b3 {[%emt 0:00:30]} Qa6 {[%emt 0:00:30]} 44. a4 {[%emt 0:00:30]} Ne4 {[%emt 0:00:30]} 45. Rc2 {[%emt 0:00:30]} Qb7 {[%emt 0:00:30]} 46. h4 {[%emt 0:00:30]} Qd7 {[%emt 0:00:30]} 47. Qf4 {[%emt 0:00:30]} Qb7 {[%emt 0:00:30]} 48. Qf3 {[%emt 0:00:30]} Qe7 {[%emt 0:00:30]} 49. Rxc6 {[%emt 0:00:30]} Qxh4 {[%emt 0:00:30]} 50. Rc8+ {[%emt 0:07:47]} Kh7 {[%emt 0:02:45]} 51. f6 {[%emt 0:00:30]} Qxf6 {[%emt 0:00:30]} 52. Qxf6 {[%emt 0:00:30]} Nxf6 {[%emt 0:00:30]} 53. Kf3 {[%emt 0:00:30]} Ne4 {[%emt 0:00:30]} 54. Ke3 {[%emt 0:00:30]} Kg6 {[%emt 0:00:30]} 55. Rc7 {[%emt 0:00:30]} a5 {[%emt 0:00:30]} 56. Ra7 {[%emt 0:00:30]} Nc5 {[%emt 0:00:30]} 57. Rxa5 {[%emt 0:00:30]} d4+ {[%emt 0:00:30]} 58. Ke2 {[%emt 0:00:30]} d3+ {[%emt 0:00:30]} 59. Kd1 {[%emt 0:00:30]} Nxb3 {[%emt 0:00:30]} 60. Rf5 {[%emt 0:00:30]} Nd4 {[%emt 0:00:30]} 61. a5 {[%emt 0:00:30]} Nc6 {[%emt 0:00:30]} 62. a6 {[%emt 0:00:30]} Na7 {[%emt 0:00:30]} 63. Kd2 {[%emt 0:00:30]} Nc6 {[%emt 0:00:30]} 64. Rc5 {[%emt 0:00:30]} 1-0

[Event "11th Chennai Open-GM 2019"]
[Site "Chennai"]
[Date "2019.01.23"]
[Round "8"]
[White "Siddarth, M."]
[Black "Deviatkin, Andrei"]
[Result "0-1"]
[ECO "B17"]
[WhiteElo "2040"]
[BlackElo "2461"]
[Annotator "ChessBase"]
[PlyCount "138"]
[EventDate "2019.01.18"]
[EventType "swiss"]
[EventCountry "IND"]
[SourceTitle "playchess.com"]
[Source "ChessBase"]
[SourceQuality "1"]
[TimeControl "5400+30"]

1. e4 {[%emt 0:00:00]} c6 {[%emt 0:11:54]} 2. d4 {[%emt 0:00:00]} d5 {[%emt 0:00:04]} 3. Nc3 {[%emt 0:00:00]} dxe4 {[%emt 0:00:04]} 4. Nxe4 {[%emt 0:00:00]} Nd7 {[%emt 0:01:06]} 5. Nf3 {[%emt 0:00:10]} Ngf6 {[%emt 0:00:08]} 6. Bd3 {[%emt 0:00:24]} Nxe4 {[%emt 0:00:22]} 7. Bxe4 {[%emt 0:00:05]} Nf6 {[%emt 0:00:37]} 8. Bd3 {[%emt 0:00:08]} Bg4 {[%emt 0:04:45]} 9. c3 {[%emt 0:00:18]} Qd5 {[%emt 0:00:36]} 10. h3 {[%emt 0:03:08]} Bxf3 {[%emt 0:03:26]} 11. Qxf3 {[%emt 0:00:16]} Qxf3 {[%emt 0:00:04]} 12. gxf3 {[%emt 0:00:04]} e6 {[%emt 0:05:04]} 13. a4 {[%emt 0:03:13]} a5 {[%emt 0:00:17]} 14. Rg1 {[%emt 0:01:37]} g6 {[%emt 0:01:49]} 15. Bf4 {[%emt 0:02:25]} Nd5 {[%emt 0:05:24]} 16. Be5 {[%emt 0:04:45]} Rg8 {[%emt 0:06:01]} 17. O-O-O {[%emt 0:01:32]} Bg7 {[%emt 0:03:16]} 18. Bg3 {[%emt 0:02:13]} O-O-O {[%emt 0:00:52]} 19. Kc2 {[%emt 0:01:47]} Rd7 {[%emt 0:00:22]} 20. Bc4 {[%emt 0:01:49]} Rgd8 {[%emt 0:00:36]} 21. Rge1 {[%emt 0:05:05]} Bf6 {[%emt 0:04:51]} 22. Bb3 {[%emt 0:01:23]} Ne7 {[%emt 0:00:32]} 23. Kb1 {[%emt 0:02:08]} b6 {[%emt 0:02:16]} 24. Bc4 {[%emt 0:03:38]} Kb7 {[%emt 0:00:08]} 25. Kc2 {[%emt 0:00:22]} Nd5 {[%emt 0:01:20]} 26. Bd3 {[%emt 0:04:21]} Be7 {[%emt 0:01:36]} 27. Bc4 {[%emt 0:01:55]} Rg8 {[%emt 0:00:49]} 28. Kb1 {[%emt 0:01:13]} Bd8 {[%emt 0:00:51]} 29. Bb3 {[%emt 0:02:28]} Bc7 {[%emt 0:01:03]} 30. Bc4 {[%emt 0:01:59]} h6 {[%emt 0:00:19]} 31. Bb3 {[%emt 0:00:28]} Rgd8 {[%emt 0:02:16]} 32. Bh4 {[%emt 0:01:19]} Rg8 {[%emt 0:05:04]} 33. Bg3 {[%emt 0:00:56]} Ne7 {[%emt 0:00:11]} 34. Bc2 {[%emt 0:01:39]} Rf8 {[%emt 0:02:10]} 35. Bd3 {[%emt 0:03:59]} Nd5 {[%emt 0:00:32]} 36. Kc2 {[%emt 0:10:55]} Nf6 {[%emt 0:00:29]} 37. Rg1 {[%emt 0:01:43]} Nh5 {[%emt 0:00:29]} 38. Rde1 {[%emt 0:01:00]} Bd6 {[%emt 0:04:45]} 39. Bc4 {[%emt 0:03:45]} Kc7 {[%emt 0:02:47]} 40. Re2 {[%emt 0:03:43]} Rfd8 {[%emt 0:03:16]} 41. Bh4 {[%emt 0:04:28]} g5 {[%emt 0:01:07]} 42. Bg3 {[%emt 0:00:10]} Nf4 {[%emt 0:08:07]} 43. Bxf4 {[%emt 0:00:41]} Bxf4 {[%emt 0:00:05]} 44. Rd1 {[%emt 0:03:44]} e5 {[%emt 0:01:43]} 45. Rd3 {[%emt 0:02:05]} exd4 {[%emt 0:00:47]} 46. Rxd4 {[%emt 0:02:50]} Rxd4 {[%emt 0:00:13]} 47. cxd4 {[%emt 0:00:01]} Rxd4 {[%emt 0:00:10]} 48. Bxf7 {[%emt 0:00:06]} Rxa4 {[%emt 0:01:29]} 49. Re7+ {[%emt 0:00:13]} Kd8 {[%emt 0:02:01]} 50. Re6 {[%emt 0:01:04]} Rc4+ {[%emt 0:01:20]} 51. Kb1 {[%emt 0:01:29]} Rc1+ {[%emt 0:00:39]} 52. Ka2 {[%emt 0:00:05]} Rc2 {[%emt 0:03:10]} 53. Kb1 {[%emt 0:01:10]} Rc1+ {[%emt 0:01:48]} 54. Ka2 {[%emt 0:00:03]} Kc7 {[%emt 0:02:03]} 55. Re7+ {[%emt 0:00:42]} Kd6 {[%emt 0:00:07]} 56. Re6+ {[%emt 0:00:05]} Kc5 {[%emt 0:01:27]} 57. Rxh6 {[%emt 0:00:35]} b5 {[%emt 0:01:40]} 58. Re6 {[%emt 0:05:12]} a4 {[%emt 0:00:25]} 59. Re4 {[%emt 0:01:14]} Rc2 {[%emt 0:03:39]} 60. h4 {[%emt 0:00:40]} Rxf2 {[%emt 0:00:25]} 61. hxg5 {[%emt 0:01:39]} Bc1 {[%emt 0:00:06]} 62. Re5+ {[%emt 0:00:13]} Kb6 {[%emt 0:00:53]} 63. Kb1 {[%emt 0:00:21]} Bxb2 {[%emt 0:00:08]} 64. Re6 {[%emt 0:00:09]} Bd4 {[%emt 0:00:54]} 65. g6 {[%emt 0:05:47]} a3 {[%emt 0:00:47]} 66. Rd6 {[%emt 0:00:58]} Rb2+ {[%emt 0:00:41]} 67. Ka1 {[%emt 0:03:56]} Bg7 {[%emt 0:00:20]} 68. Bd5 {[%emt 0:01:00]} Rd2+ {[%emt 0:00:12]} 69. Kb1 {[%emt 0:00:05]} Rxd5 {[%emt 0:00:26]} 0-1

[Event "11th Chennai Open-GM 2019"]
[Site "Chennai"]
[Date "2019.01.24"]
[Round "9"]
[White "Deviatkin, Andrei"]
[Black "Paichadze, Luka"]
[Result "1/2-1/2"]
[ECO "B10"]
[WhiteElo "2461"]
[BlackElo "2583"]
[Annotator "ChessBase"]
[PlyCount "112"]
[EventDate "2019.01.18"]
[EventType "swiss"]
[EventCountry "IND"]
[SourceTitle "playchess.com"]
[Source "ChessBase"]
[SourceQuality "1"]
[TimeControl "5400+30"]

1. e4 {[%emt 0:13:12]} c6 {[%emt 0:00:00]} 2. Nc3 {[%emt 0:00:06]} d5 {[%emt 0:00:00]} 3. Qe2 {[%emt 0:00:34]} dxe4 {[%emt 0:04:29]} 4. Nxe4 {[%emt 0:00:16]} Nf6 {[%emt 0:00:12]} 5. Nf3 {[%emt 0:08:50]} Bf5 {[%emt 0:02:16]} 6. d3 {[%emt 0:00:11]} Na6 {[%emt 0:04:23]} 7. g3 {[%emt 0:03:17]} Qd5 {[%emt 0:02:42]} 8. Nc3 {[%emt 0:02:42]} Qd7 {[%emt 0:01:59]} 9. Bg2 {[%emt 0:04:50]} Bh3 {[%emt 0:07:14]} 10. Ne5 {[%emt 0:01:41]} Qe6 {[%emt 0:00:07]} 11. Bxh3 {[%emt 0:04:42]} Qxh3 {[%emt 0:00:07]} 12. Bf4 {[%emt 0:01:59]} Qe6 {[%emt 0:05:46]} 13. O-O {[%emt 0:08:24]} Nd7 {[%emt 0:07:09]} 14. Rfe1 {[%emt 0:08:10]} Nxe5 {[%emt 0:00:10]} 15. Qh5 {[%emt 0:00:54]} g6 {[%emt 0:18:57]} 16. Qxe5 {[%emt 0:01:08]} Qxe5 {[%emt 0:00:05]} 17. Bxe5 {[%emt 0:00:05]} Rg8 {[%emt 0:00:02]} 18. a3 {[%emt 0:10:24]} O-O-O {[%emt 0:01:02]} 19. Ne4 {[%emt 0:00:23]} Rd5 {[%emt 0:05:07]} 20. Bc3 {[%emt 0:07:05]} Nc5 {[%emt 0:03:06]} 21. a4 {[%emt 0:04:52]} Ne6 {[%emt 0:04:44]} 22. Rad1 {[%emt 0:04:20]} Bh6 {[%emt 0:01:52]} 23. h4 {[%emt 0:01:51]} Bg7 {[%emt 0:04:38]} 24. Bxg7 {[%emt 0:02:20]} Rxg7 {[%emt 0:00:10]} 25. c3 {[%emt 0:00:12]} h6 {[%emt 0:00:29]} 26. d4 {[%emt 0:01:39]} Rg8 {[%emt 0:02:18]} 27. Rd2 {[%emt 0:01:17]} Rgd8 {[%emt 0:00:31]} 28. Rde2 {[%emt 0:00:07]} b6 {[%emt 0:02:41]} 29. f3 {[%emt 0:01:59]} R8d7 {[%emt 0:03:05]} 30. Nf2 {[%emt 0:01:32]} c5 {[%emt 0:00:13]} 31. Ng4 {[%emt 0:01:26]} cxd4 {[%emt 0:00:26]} 32. Ne5 {[%emt 0:00:07]} Rc7 {[%emt 0:00:53]} 33. Nxf7 {[%emt 0:00:46]} dxc3 {[%emt 0:00:18]} 34. bxc3 {[%emt 0:00:10]} Nc5 {[%emt 0:00:09]} 35. Rxe7 {[%emt 0:01:03]} Nxa4 {[%emt 0:01:20]} 36. c4 {[%emt 0:01:20]} Rxe7 {[%emt 0:03:26]} 37. Rxe7 {[%emt 0:00:03]} Rd1+ {[%emt 0:03:07]} 38. Kf2 {[%emt 0:00:14]} a5 {[%emt 0:00:07]} 39. Ne5 {[%emt 0:02:04]} Nb2 {[%emt 0:05:08]} 40. Re6 {[%emt 0:01:08]} Kb7 {[%emt 0:00:34]} 41. Rxg6 {[%emt 0:01:22]} a4 {[%emt 0:00:34]} 42. Rg7+ {[%emt 0:00:06]} Ka6 {[%emt 0:00:44]} 43. Rg8 {[%emt 0:00:53]} Rc1 {[%emt 0:00:43]} 44. g4 {[%emt 0:01:06]} Nxc4 {[%emt 0:00:18]} 45. Nxc4 {[%emt 0:00:46]} Rxc4 {[%emt 0:00:03]} 46. g5 {[%emt 0:00:16]} hxg5 {[%emt 0:00:06]} 47. hxg5 {[%emt 0:00:03]} b5 {[%emt 0:04:26]} 48. g6 {[%emt 0:00:39]} Rc7 {[%emt 0:00:06]} 49. f4 {[%emt 0:00:49]} a3 {[%emt 0:05:22]} 50. Ra8+ {[%emt 0:00:35]} Ra7 {[%emt 0:00:04]} 51. Rxa7+ {[%emt 0:00:51]} Kxa7 {[%emt 0:00:03]} 52. g7 {[%emt 0:00:05]} a2 {[%emt 0:00:03]} 53. g8=Q {[%emt 0:00:06]} a1=Q {[%emt 0:00:05]} 54. Qf7+ {[%emt 0:00:56]} Kb6 {[%emt 0:00:07]} 55. Qe6+ {[%emt 0:00:43]} Kc5 {[%emt 0:00:29]} 56. Qe7+ {[%emt 0:00:39]} Kc6 {[%emt 0:00:19]} 1/2-1/2